fUST/lending_fUST_20250716
["ID","MTS","AMOUNT","RATE_DAILY","PERIOD"]
[372440642,1752646245716,-460.87481533,0.0002,2]
[372440644,1752646245726,-460.0,0.0002,2]
[372440646,1752646245735,-460.0,0.0002,2]
[372440648,1752646245744,-460.0,0.0002,2]
[372440651,1752646245754,-460.0,0.0002,2]
[372440654,1752646245763,-460.0,0.0002,2]
[372440657,1752646245773,-460.0,0.0002,2]
[372440660,1752646245782,-460.0,0.0002,2]
[372440663,1752646245791,-460.0,0.0002,2]
[372440665,1752646245801,-460.0,0.0002,2]
[372440668,1752646245813,-460.0,0.0002,2]
[372440670,1752646245823,-460.0,0.0002,2]
[372440672,1752646245833,-460.0,0.0002,2]
[372440674,1752646245844,-460.0,0.0002,2]
[372440676,1752646245854,-460.0,0.0002,2]
[372440678,1752646245864,-460.0,0.0002,2]
[372440680,1752646245873,-464.38501661,0.0002,2]
[372440682,1752646245883,-460.0,0.0002,2]
[372440684,1752646245892,-460.0,0.0002,2]
[372440686,1752646245902,-288.82795445,0.0002,2]
[372440688,1752646245911,-151.0,0.0002,4]
[372440690,1752646245921,-417.32278206,0.0002,2]
[372440692,1752646245930,-460.0,0.0002,2]
[372440694,1752646245939,-460.0,0.0002,2]
[372440696,1752646245949,-460.0,0.0002,2]
[372440698,1752646245959,-299.79826105,0.0002,2]
[372440700,1752646245969,-460.0,0.0002,2]
[372440702,1752646245978,-460.0,0.0002,2]
[372440704,1752646245988,-460.0,0.0002,2]
[372440706,1752646245997,-460.0,0.0002,2]
[372440708,1752646246007,-460.0,0.0002,2]
[372440710,1752646246017,-877.26,0.0002,2]
[372440712,1752646246031,-460.0,0.0002,2]
[372440714,1752646246040,-488.6156458,0.0002,2]
[372440716,1752646246050,-460.0,0.0002,2]
[372440718,1752646246059,-460.0,0.0002,2]
[372440720,1752646246069,-354.65473086,0.0002,2]
[372440722,1752646246078,-460.0,0.0002,2]
[372440724,1752646246087,-460.0,0.0002,2]
[372440726,1752646246098,-460.0,0.0002,2]
[372440728,1752646246108,-460.0,0.0002,2]
[372440730,1752646246118,-2561.96,0.0002,2]
[372440732,1752646246127,-460.0,0.0002,2]
[372440734,1752646246138,-460.0,0.0002,2]
[372440736,1752646246147,-460.0,0.0002,2]
[372440738,1752646246156,-769.46,0.0002,2]
[372440749,1752646246248,-460.0,0.0002,2]
[372440751,1752646246259,-460.0,0.0002,2]
[372440753,1752646246268,-460.0,0.0002,2]
[372440755,1752646246278,-1046.2,0.0002,2]
[372440757,1752646246287,-460.0,0.0002,2]
[372440759,1752646246297,-460.0,0.0002,2]
[372440761,1752646246307,-460.0,0.0002,2]
[372440763,1752646246317,-281.88,0.0002,2]
[372440765,1752646246326,-1485.41,0.0002,2]
[372440767,1752646246336,-4594.58,0.0002,2]
[372440769,1752646246346,-344.57,0.0002,2]
[372440771,1752646246356,-460.0,0.0002,2]
[372440773,1752646246366,-460.0,0.0002,2]
[372440775,1752646246375,-467.48,0.0002,2]
[372440777,1752646246385,-460.0,0.0002,2]
[372440779,1752646246395,-152.29115071,0.0002,2]
[372440781,1752646246404,-460.0,0.0002,2]
[372440783,1752646246414,-460.0,0.0002,2]
[372440785,1752646246424,-1116.92,0.0002,2]
[372440787,1752646246433,-460.0,0.0002,2]
[372440789,1752646246445,-460.0,0.0002,2]
[372440791,1752646246454,-460.0,0.0002,2]
[372440793,1752646246464,-460.0,0.0002,2]
[372440795,1752646246474,-460.0,0.0002,2]
[372440797,1752646246483,-460.0,0.0002,2]
[372440799,1752646246493,-234.33,0.0002,2]
[372440801,1752646246502,-1782.44,0.0002,2]
[372440803,1752646246512,-460.0,0.0002,2]
[372440805,1752646246522,-460.0,0.0002,2]
[372440807,1752646246531,-460.0,0.0002,2]
[372440809,1752646246541,-215.3,0.0002,2]
[372440811,1752646246551,-460.0,0.0002,2]
[372440813,1752646246560,-460.0,0.0002,2]
[372440815,1752646246570,-1401.86,0.0002,2]
[372440817,1752646246579,-460.0,0.0002,2]
[372440819,1752646246589,-496.36,0.0002,2]
[372440821,1752646246599,-460.0,0.0002,2]
[372440823,1752646246609,-4539.19,0.0002,2]
[372440825,1752646246619,-460.0,0.0002,2]
[372440827,1752646246629,-460.0,0.0002,2]
[372440829,1752646246639,-460.0,0.0002,2]
[372440831,1752646246649,-460.0,0.0002,2]
[372440833,1752646246659,-1507.72,0.0002,2]
[372440835,1752646246669,-474.75,0.0002,2]
[372440837,1752646246678,-460.0,0.0002,2]
[372440839,1752646246688,-1563.67,0.0002,2]
[372440841,1752646246698,-1249.42,0.0002,2]
[372440843,1752646246707,-460.0,0.0002,2]
[372440845,1752646246716,-460.0,0.0002,2]
[372440847,1752646246725,-460.0,0.0002,2]
[372440849,1752646246735,-460.0,0.0002,2]
[372440851,1752646246745,-460.0,0.0002,2]
[372440853,1752646246755,-460.0,0.0002,2]
[372440855,1752646246764,-460.0,0.0002,2]
[372440857,1752646246774,-3273.35,0.0002,2]
[372440859,1752646246782,-460.0,0.0002,2]
[372440861,1752646246792,-460.0,0.0002,2]
[372440863,1752646246801,-460.0,0.0002,2]
[372440865,1752646246811,-460.0,0.0002,2]
[372440867,1752646246820,-460.0,0.0002,2]
[372440869,1752646246831,-260.0,0.00020145,2]
[372440871,1752646246841,-45245.7693956,0.00020173,2]
[372440873,1752646246851,-414.172127,0.00020187,2]
[372440875,1752646246862,-20338.45,0.000202,2]
[372440877,1752646246871,-151.0,0.000202,3]
[372440879,1752646246881,-508.87138364,0.00020268,2]
[372440881,1752646246891,-460.0,0.00020273,2]
[372440883,1752646246900,-460.0,0.00020273,2]
[372440885,1752646246910,-460.0,0.00020273,2]
[372440887,1752646246920,-460.0,0.00020273,2]
[372440889,1752646246929,-460.0,0.00020273,2]
[372440891,1752646246939,-460.0,0.00020273,2]
[372440893,1752646246948,-460.0,0.00020273,2]
[372440895,1752646246958,-604.05,0.00020273,2]
[372440897,1752646246968,-370.7,0.00020273,2]
[372440899,1752646246977,-460.0,0.00020273,2]
[372440901,1752646246987,-460.0,0.00020273,2]
[372440903,1752646246996,-460.0,0.00020273,2]
[372440905,1752646247005,-460.0,0.00020273,2]
[372440907,1752646247015,-386.95,0.00020273,2]
[372440909,1752646247024,-460.0,0.00020273,2]
[372440911,1752646247038,-460.0,0.00020273,2]
[372440913,1752646247050,-460.0,0.00020273,2]
[372440915,1752646247059,-460.0,0.00020273,2]
[372440917,1752646247068,-460.0,0.00020273,2]
[372440918,1752646247078,-460.0,0.00020273,2]
[372440920,1752646247087,-486.76,0.00020273,2]
[372440923,1752646247097,-460.0,0.00020273,2]
[372440924,1752646247108,-460.0,0.00020273,2]
[372440927,1752646247118,-181.46,0.00020273,2]
[372440928,1752646247128,-359.01659589,0.00020273,2]
[372440930,1752646247137,-460.0,0.00020273,2]
[372440932,1752646247147,-460.0,0.00020273,2]
[372440934,1752646247157,-877.26,0.00020273,2]
[372440936,1752646247166,-460.0,0.00020273,2]
[372440939,1752646247176,-460.0,0.00020273,2]
[372440941,1752646247186,-517.76,0.00020273,2]
[372440942,1752646247195,-460.0,0.00020273,2]
[372440945,1752646247207,-460.0,0.00020273,2]
[372440946,1752646247216,-460.0,0.00020273,2]
[372440948,1752646247226,-460.0,0.00020273,2]
[372440951,1752646247235,-2561.96,0.00020273,2]
[372440952,1752646247245,-460.0,0.00020273,2]
[372440954,1752646247256,-460.0,0.00020273,2]
[372440957,1752646247266,-460.0,0.00020273,2]
[372440959,1752646247275,-769.46,0.00020273,2]
[372440961,1752646247285,-460.0,0.00020273,2]
[372440963,1752646247295,-460.0,0.00020273,2]
[372440965,1752646247304,-460.0,0.00020273,2]
[372440966,1752646247314,-1046.2,0.00020273,2]
[372440969,1752646247323,-460.0,0.00020273,2]
[372440971,1752646247333,-460.0,0.00020273,2]
[372440972,1752646247342,-460.0,0.00020273,2]
[372440975,1752646247352,-1485.41,0.00020273,2]
[372440977,1752646247362,-4594.58,0.00020273,2]
[372440979,1752646247371,-227.05859669,0.00020273,2]
[372440981,1752646247380,-460.0,0.00020273,2]
[372440982,1752646247390,-460.0,0.00020273,2]
[372440984,1752646247400,-460.0,0.00020273,2]
[372440986,1752646247411,-153.52,0.00020273,2]
[372440988,1752646247423,-1116.92,0.00020273,2]
[372440990,1752646247432,-460.0,0.00020273,2]
[372440992,1752646247441,-460.0,0.00020273,2]
[372440994,1752646247452,-460.0,0.00020273,2]
[372440996,1752646247461,-460.0,0.00020273,2]
[372440998,1752646247470,-460.0,0.00020273,2]
[372441001,1752646247480,-460.0,0.00020273,2]
[372441002,1752646247489,-1782.44,0.00020273,2]
[372441004,1752646247499,-292.19,0.00020273,2]
[372441007,1752646247510,-460.0,0.00020273,2]
[372441008,1752646247521,-460.0,0.00020273,2]
[372441010,1752646247530,-460.0,0.00020273,2]
[372441013,1752646247540,-1401.86,0.00020273,2]
[372441014,1752646247549,-460.0,0.00020273,2]
[372441016,1752646247558,-460.0,0.00020273,2]
[372441018,1752646247568,-496.36,0.00020273,2]
[372441020,1752646247577,-460.0,0.00020273,2]
[372441022,1752646247586,-4539.19,0.00020273,2]
[372441025,1752646247596,-296.25,0.00020273,2]
[372441027,1752646247605,-460.0,0.00020273,2]
[372441029,1752646247616,-460.0,0.00020273,2]
[372441030,1752646247626,-460.0,0.00020273,2]
[372441032,1752646247635,-474.75,0.00020273,2]
[372441034,1752646247644,-1507.72,0.00020273,2]
[372441036,1752646247654,-460.0,0.00020273,2]
[372441038,1752646247662,-1563.67,0.00020273,2]
[372441040,1752646247672,-1249.42,0.00020273,2]
[372441042,1752646247681,-158.42,0.00020273,2]
[372441044,1752646247691,-460.0,0.00020273,2]
[372441047,1752646247700,-181.94283465,0.00020273,2]
[372441049,1752646247710,-460.0,0.00020273,2]
[372441051,1752646247719,-454.19,0.00020273,2]
[372441053,1752646247729,-460.0,0.00020273,2]
[372441055,1752646247738,-460.0,0.00020273,2]
[372441056,1752646247747,-3273.35,0.00020273,2]
[372441058,1752646247756,-460.0,0.00020273,2]
[372441060,1752646247766,-289.62,0.00020273,2]
[372441062,1752646247776,-460.0,0.00020273,2]
[372441065,1752646247785,-460.0,0.00020273,2]
[372441066,1752646247795,-460.0,0.00020273,2]
[372441069,1752646247805,-151.0,0.000203,3]
[372441078,1752646247887,-500.0,0.0002034,2]
[372441080,1752646247898,-502.97273947,0.0002034,2]
[372441082,1752646247907,-500.0,0.0002034,2]
[372441084,1752646247917,-4557.98195225,0.00020379,2]
[372441086,1752646247926,-151.0,0.000204,3]
[372441088,1752646247935,-151.0,0.000204,4]
[372441090,1752646247945,-3011.648212,0.00020447,2]
[372441092,1752646247955,-688.34,0.00020538,3]
[372441094,1752646247964,-344.16,0.00020538,3]
[372441096,1752646247973,-739.82,0.00020538,3]
[372441098,1752646247983,-369.9,0.00020538,3]
[372441100,1752646247992,-460.0,0.00020547,2]
[372441102,1752646248002,-460.0,0.00020547,2]
[372441104,1752646248011,-444.93834934,0.00020547,2]
[372441106,1752646248020,-460.0,0.00020547,2]
[372441108,1752646248032,-460.0,0.00020547,2]
[372441110,1752646248042,-460.0,0.00020547,2]
[372441112,1752646248052,-460.0,0.00020547,2]
[372441114,1752646248062,-460.0,0.00020547,2]
[372441116,1752646248073,-336.25482979,0.00020547,2]
[372441118,1752646248083,-460.0,0.00020547,2]
[372441120,1752646248092,-460.0,0.00020547,2]
[372441122,1752646248102,-460.0,0.00020547,2]
[372441124,1752646248113,-329.16,0.00020547,2]
[372441126,1752646248123,-460.0,0.00020547,2]
[372441128,1752646248132,-460.0,0.00020547,2]
[372441130,1752646248141,-460.0,0.00020547,2]
[372441132,1752646248151,-460.0,0.00020547,2]
[372441134,1752646248161,-461.72965024,0.00020547,2]
[372441136,1752646248170,-599.00652439,0.00020547,2]
[372441138,1752646248180,-877.26,0.00020547,2]
[372441140,1752646248189,-460.0,0.00020547,2]
[372441142,1752646248200,-460.0,0.00020547,2]
[372441144,1752646248210,-460.0,0.00020547,2]
[372441146,1752646248220,-330.6438691,0.00020547,2]
[372441147,1752646248229,-460.0,0.00020547,2]
[372441148,1752646248239,-415.54,0.00020547,2]
[372441149,1752646248248,-2561.96,0.00020547,2]
[372441150,1752646248258,-460.0,0.00020547,2]
[372441151,1752646248267,-460.0,0.00020547,2]
[372441152,1752646248277,-460.0,0.00020547,2]
[372441153,1752646248286,-769.46,0.00020547,2]
[372441154,1752646248295,-460.0,0.00020547,2]
[372441155,1752646248305,-460.0,0.00020547,2]
[372441156,1752646248315,-460.0,0.00020547,2]
[372441157,1752646248324,-1046.2,0.00020547,2]
[372441158,1752646248334,-460.0,0.00020547,2]
[372441159,1752646248348,-460.0,0.00020547,2]
[372441160,1752646248357,-460.0,0.00020547,2]
[372441162,1752646248368,-1485.41,0.00020547,2]
[372441163,1752646248378,-4594.58,0.00020547,2]
[372441165,1752646248388,-460.0,0.00020547,2]
[372441168,1752646248398,-460.0,0.00020547,2]
[372441169,1752646248408,-460.0,0.00020547,2]
[372441171,1752646248418,-1116.92,0.00020547,2]
[372441173,1752646248428,-460.0,0.00020547,2]
[372441176,1752646248439,-460.0,0.00020547,2]
[372441178,1752646248448,-460.0,0.00020547,2]
[372441179,1752646248458,-460.0,0.00020547,2]
[372441182,1752646248469,-460.0,0.00020547,2]
[372441184,1752646248479,-460.0,0.00020547,2]
[372441186,1752646248488,-1782.44,0.00020547,2]
[372441188,1752646248498,-460.0,0.00020547,2]
[372441190,1752646248507,-460.0,0.00020547,2]
[372441192,1752646248516,-460.0,0.00020547,2]
[372441193,1752646248525,-1401.86,0.00020547,2]
[372441195,1752646248535,-496.36,0.00020547,2]
[372441198,1752646248545,-460.0,0.00020547,2]
[372441199,1752646248554,-4539.19,0.00020547,2]
[372441201,1752646248564,-460.0,0.00020547,2]
[372441203,1752646248573,-460.0,0.00020547,2]
[372441205,1752646248583,-460.0,0.00020547,2]
[372441207,1752646248592,-474.75,0.00020547,2]
[372441209,1752646248601,-1507.72,0.00020547,2]
[372441211,1752646248611,-460.0,0.00020547,2]
[372441213,1752646248620,-1563.67,0.00020547,2]
[372441215,1752646248629,-1249.42,0.00020547,2]
[372441217,1752646248639,-460.0,0.00020547,2]
[372441219,1752646248648,-460.0,0.00020547,2]
[372441221,1752646248658,-460.0,0.00020547,2]
[372441223,1752646248668,-460.0,0.00020547,2]
[372441225,1752646248677,-3273.35,0.00020547,2]
[372441227,1752646248687,-573.93267886,0.00020547,2]
[372441229,1752646248696,-460.0,0.00020547,2]
[372441231,1752646248706,-460.0,0.00020547,2]
[372441233,1752646248714,-460.0,0.00020547,2]
[372441235,1752646248724,-500.0,0.00020629,2]
[372441237,1752646248734,-500.0,0.00020629,2]
[372441239,1752646248744,-501.74631657,0.00020629,2]
[372441241,1752646248753,-500.0,0.00020629,2]
[372441243,1752646248763,-500.0,0.00020629,2]
[372441245,1752646248771,-500.0,0.00020629,2]
[372441247,1752646248780,-500.95998998,0.00020629,2]
[372441249,1752646248788,-360.0,0.00020693,2]
[372441251,1752646248798,-501.57608094,0.00020694,2]
[372441253,1752646248806,-500.0,0.00020694,2]
[372441254,1752646248816,-155.14699391,0.00020694,2]
[372441256,1752646248825,-500.0,0.00020694,2]
[372441258,1752646248835,-500.0,0.00020694,2]
[372441261,1752646248844,-151.0,0.000207,3]
[372441262,1752646248854,-468.75,0.00020755,2]
[372441265,1752646248865,-160.0,0.0002077,2]
[372441266,1752646248876,-520.85416667,0.0002077,2]
[372441268,1752646248885,-160.0,0.0002077,2]
[372441270,1752646248895,-838.99048831,0.0002077,2]
[372441272,1752646248905,-230.8109288,0.0002077,2]
[372441274,1752646248914,-12605.49131908,0.0002077,2]
[372441276,1752646248923,-214.40824756,0.00020774,2]
[372441278,1752646248934,-160.0,0.00020774,2]
[372441280,1752646248943,-160.0,0.00020774,2]
[372441282,1752646248953,-160.0,0.00020774,2]
[372441284,1752646248962,-160.0,0.00020774,2]
[372441286,1752646248972,-160.0,0.00020777,2]
[372441288,1752646248981,-215.5496034,0.00020777,2]
[372441290,1752646248991,-160.0,0.00020777,2]
[372441292,1752646249000,-160.0,0.00020777,2]
[372441294,1752646249009,-151.0,0.000208,4]
[372441296,1752646249018,-460.0,0.00020821,2]
[372441298,1752646249030,-460.0,0.00020821,2]
[372441300,1752646249041,-460.0,0.00020821,2]
[372441302,1752646249051,-460.0,0.00020821,2]
[372441304,1752646249060,-421.13,0.00020821,2]
[372441306,1752646249070,-460.0,0.00020821,2]
[372441308,1752646249080,-460.0,0.00020821,2]
[372441310,1752646249090,-460.0,0.00020821,2]
[372441312,1752646249100,-460.0,0.00020821,2]
[372441314,1752646249109,-460.0,0.00020821,2]
[372441316,1752646249119,-460.0,0.00020821,2]
[372441318,1752646249129,-460.0,0.00020821,2]
[372441320,1752646249139,-460.0,0.00020821,2]
[372441322,1752646249148,-460.0,0.00020821,2]
[372441324,1752646249159,-877.26,0.00020821,2]
[372441326,1752646249169,-460.0,0.00020821,2]
[372441328,1752646249179,-460.0,0.00020821,2]
[372441330,1752646249189,-460.0,0.00020821,2]
[372441332,1752646249198,-2561.96,0.00020821,2]
[372441334,1752646249208,-460.0,0.00020821,2]
[372441336,1752646249217,-460.0,0.00020821,2]
[372441338,1752646249228,-460.0,0.00020821,2]
[372441340,1752646249237,-769.46,0.00020821,2]
[372441342,1752646249247,-460.0,0.00020821,2]
[372441343,1752646249256,-460.0,0.00020821,2]
[372441345,1752646249266,-460.0,0.00020821,2]
[372441348,1752646249276,-1046.2,0.00020821,2]
[372441349,1752646249285,-460.0,0.00020821,2]
[372441351,1752646249295,-460.0,0.00020821,2]
[372441353,1752646249305,-460.0,0.00020821,2]
[372441362,1752646249383,-1485.41,0.00020821,2]
[372441364,1752646249393,-4594.58,0.00020821,2]
[372441366,1752646249403,-460.0,0.00020821,2]
[372441368,1752646249412,-460.0,0.00020821,2]
[372441370,1752646249421,-460.0,0.00020821,2]
[372441372,1752646249431,-1116.92,0.00020821,2]
[372441374,1752646249440,-460.0,0.00020821,2]
[372441376,1752646249450,-460.0,0.00020821,2]
[372441378,1752646249460,-460.0,0.00020821,2]
[372441380,1752646249469,-460.0,0.00020821,2]
[372441382,1752646249478,-460.0,0.00020821,2]
[372441384,1752646249487,-460.0,0.00020821,2]
[372441386,1752646249496,-1782.44,0.00020821,2]
[372441388,1752646249505,-460.0,0.00020821,2]
[372441390,1752646249515,-460.0,0.00020821,2]
[372441392,1752646249526,-1401.86,0.00020821,2]
[372441394,1752646249535,-496.36,0.00020821,2]
[372441396,1752646249544,-460.0,0.00020821,2]
[372441398,1752646249554,-4539.19,0.00020821,2]
[372441400,1752646249564,-460.0,0.00020821,2]
[372441402,1752646249574,-460.0,0.00020821,2]
[372441404,1752646249583,-460.0,0.00020821,2]
[372441406,1752646249592,-474.75,0.00020821,2]
[372441408,1752646249601,-1507.72,0.00020821,2]
[372441410,1752646249611,-1563.67,0.00020821,2]
[372441412,1752646249620,-1249.42,0.00020821,2]
[372441414,1752646249629,-460.0,0.00020821,2]
[372441416,1752646249639,-460.0,0.00020821,2]
[372441417,1752646249648,-3273.35,0.00020821,2]
[372441420,1752646249658,-460.0,0.00020821,2]
[372441421,1752646249668,-460.0,0.00020821,2]
[372441423,1752646249677,-460.0,0.00020821,2]
[372441425,1752646249686,-500.0,0.00020842,2]
[372441427,1752646249696,-500.0,0.00020842,2]
[372441429,1752646249705,-502.2923926,0.00020842,2]
[372441431,1752646249714,-1000.0,0.00020888,2]
[372441433,1752646249724,-1000.0,0.00020888,2]
[372441436,1752646249734,-1680.0,0.00020895,2]
[372441437,1752646249744,-151.0,0.000209,3]
[372441440,1752646249754,-1445.75,0.000209,2]
[372441442,1752646249764,-151.0,0.000209,4]
[372441443,1752646249775,-500.0,0.00020925,2]
[372441445,1752646249786,-347.49547467,0.00020944,2]
[372441447,1752646249795,-216.279,0.00021012,2]
[372441449,1752646249805,-500.0,0.00021047,2]
[372441451,1752646249815,-260.94696276,0.00021095,2]
[372441453,1752646249824,-460.0,0.00021095,2]
[372441456,1752646249834,-460.0,0.00021095,2]
[372441457,1752646249843,-339.99,0.00021095,2]
[372441460,1752646249854,-460.0,0.00021095,2]
[372441461,1752646249863,-460.0,0.00021095,2]
[372441464,1752646249873,-460.0,0.00021095,2]
[372441466,1752646249883,-877.26,0.00021095,2]
[372441468,1752646249893,-460.0,0.00021095,2]
[372441469,1752646249902,-254.52,0.00021095,2]
[372441471,1752646249912,-2561.96,0.00021095,2]
[372441473,1752646249922,-460.0,0.00021095,2]
[372441475,1752646249932,-292.6,0.00021095,2]
[372441477,1752646249942,-769.46,0.00021095,2]
[372441479,1752646249951,-460.0,0.00021095,2]
[372441481,1752646249961,-460.0,0.00021095,2]
[372441483,1752646249971,-1046.2,0.00021095,2]
[372441485,1752646249980,-460.0,0.00021095,2]
[372441487,1752646249989,-460.0,0.00021095,2]
[372441489,1752646249999,-1485.41,0.00021095,2]
[372441491,1752646250008,-4594.58,0.00021095,2]
[372441493,1752646250019,-460.0,0.00021095,2]
[372441495,1752646250032,-460.0,0.00021095,2]
[372441497,1752646250042,-460.0,0.00021095,2]
[372441499,1752646250051,-1116.92,0.00021095,2]
[372441501,1752646250060,-460.0,0.00021095,2]
[372441503,1752646250070,-576.66,0.00021095,2]
[372441505,1752646250079,-460.0,0.00021095,2]
[372441507,1752646250090,-1782.44,0.00021095,2]
[372441509,1752646250100,-460.0,0.00021095,2]
[372441511,1752646250110,-1401.86,0.00021095,2]
[372441513,1752646250125,-496.36,0.00021095,2]
[372441515,1752646250135,-4539.19,0.00021095,2]
[372441517,1752646250144,-460.0,0.00021095,2]
[372441519,1752646250153,-460.0,0.00021095,2]
[372441521,1752646250163,-474.75,0.00021095,2]
[372441523,1752646250173,-1507.72,0.00021095,2]
[372441525,1752646250182,-1563.67,0.00021095,2]
[372441527,1752646250192,-1249.42,0.00021095,2]
[372441529,1752646250201,-460.0,0.00021095,2]
[372441530,1752646250211,-460.0,0.00021095,2]
[372441532,1752646250221,-3273.35,0.00021095,2]
[372441534,1752646250231,-460.0,0.00021095,2]
[372441537,1752646250240,-460.0,0.00021095,2]
[372441538,1752646250250,-460.0,0.00021095,2]
[372441540,1752646250262,-501.23142804,0.00021177,2]
[372441542,1752646250271,-1009.97453213,0.00021177,2]
[372441544,1752646250281,-619.23527322,0.00021177,2]
[372441547,1752646250290,-500.74551756,0.00021177,2]
[372441548,1752646250301,-1000.0,0.00021177,2]
[372441551,1752646250311,-151.0,0.000212,4]
[372441552,1752646250320,-151.0,0.000212,4]
[372441555,1752646250329,-460.0,0.00021241,2]
[372441556,1752646250339,-501.13651556,0.00021242,2]
[372441558,1752646250348,-1000.0,0.00021242,2]
[372441560,1752646250358,-1153.87,0.000213,2]
[372441562,1752646250370,-460.0,0.00021369,2]
[372441564,1752646250380,-460.0,0.00021369,2]
[372441566,1752646250389,-460.0,0.00021369,2]
[372441568,1752646250399,-460.0,0.00021369,2]
[372441571,1752646250409,-460.0,0.00021369,2]
[372441573,1752646250419,-877.26,0.00021369,2]
[372441575,1752646250429,-164.61,0.00021369,2]
[372441577,1752646250438,-2561.96,0.00021369,2]
[372441579,1752646250447,-460.0,0.00021369,2]
[372441580,1752646250456,-769.46,0.00021369,2]
[372441582,1752646250465,-460.0,0.00021369,2]
[372441584,1752646250475,-460.0,0.00021369,2]
[372441586,1752646250484,-1046.2,0.00021369,2]
[372441588,1752646250494,-460.0,0.00021369,2]
[372441589,1752646250503,-1485.41,0.00021369,2]
[372441590,1752646250512,-4594.58,0.00021369,2]
[372441591,1752646250521,-444.54,0.00021369,2]
[372441592,1752646250530,-460.0,0.00021369,2]
[372441593,1752646250539,-441.88,0.00021369,2]
[372441594,1752646250548,-1116.92,0.00021369,2]
[372441595,1752646250557,-460.0,0.00021369,2]
[372441596,1752646250566,-460.0,0.00021369,2]
[372441597,1752646250575,-1782.44,0.00021369,2]
[372441598,1752646250583,-460.0,0.00021369,2]
[372441599,1752646250592,-1401.86,0.00021369,2]
[372441600,1752646250602,-496.36,0.00021369,2]
[372441601,1752646250611,-4539.19,0.00021369,2]
[372441602,1752646250622,-460.0,0.00021369,2]
[372441603,1752646250631,-179.24,0.00021369,2]
[372441604,1752646250640,-474.75,0.00021369,2]
[372441605,1752646250649,-1507.72,0.00021369,2]
[372441606,1752646250658,-1563.67,0.00021369,2]
[372441607,1752646250667,-1249.42,0.00021369,2]
[372441608,1752646250676,-460.0,0.00021369,2]
[372441609,1752646250685,-353.14,0.00021369,2]
[372441610,1752646250694,-3273.35,0.00021369,2]
[372441611,1752646250771,-460.0,0.00021369,2]
[372441612,1752646250780,-460.0,0.00021369,2]
[372441613,1752646250790,-460.0,0.00021369,2]
[372441614,1752646250799,-212.90624072,0.0002139,2]
[372441615,1752646250808,-1000.0,0.0002139,2]
[372441616,1752646250817,-151.0,0.000214,4]
[372441617,1752646250826,-151.0,0.000214,3]
[372441618,1752646250835,-1006.36238514,0.00021436,2]
[372441619,1752646250845,-1500.0,0.00021436,2]